{"text_format":"1","workbook":"xlsx","n_sheets":10,"sheets":["Instructions","Overview","Section 1","Section 2 - Site 1","Section 2 - Home Child Care","Section 3","Section 3 - Staffing Info","Section 4 and 5","INPUTS","Data Validation"],"not_rendered":{"charts":0,"images":2,"macros":1,"external_links":0,"defined_names":71,"comments":0,"pivot_tables":0},"unopened":[],"bounds":{"document_bytes":16777216,"sheet_cells":100000,"rows_first":2000,"rows_last":500,"rows_between":2000,"halvings":0,"cell_chars":16384,"cell_head_chars":4096},"cells_cut":0,"cells_raw":0,"read":"whole","date_system":"1900"}

{"sheet":"Instructions","index":0,"n_rows":41,"n_cols":12,"rows_kept":41,"cut":false,"hidden":false,"merged":[[0,2,0,15],[1,2,1,15]]}
[null,null,"CANADA-WIDE EARLY LEARNING AND CHILD CARE (CWELCC)"]
[null,null,"2023 APPLICATION FORM"]
[]
[null,null,"Licensed child care agencies have the choice submit an application to enrol in the Canada-Wide Early Learning and Child Care (CWELCC) System."]
[]
[null,null,"Application Requirements:"]
[null,null,null,"Please review below information and submit completed document(s) to:  ",null,null,null,null,null,null,null,"csfundingrequest@dnssab.ca"]
[]
[null,null,"Purpose:"]
[null,null,null,"To allow licensed child care agencies operating in the District of Nipissing to express their interest in enrolling in"]
[null,null,null,"the CWELCC System and for the District of Nipissing Social Services Administration Board (DNSSAB) to receive all"]
[null,null,null,"information required to determine eligibility and confirm program's alignment with local service system plan."]
[]
[null,null,"Instructions:"]
[null,null,null,"1. Read through each tab/section carefully, enter information where prompted, modifying and/or updating pre-populated "]
[null,null,null,"information where required."]
[null,null,null,null,"Section 1 – Agency Information"]
[null,null,null,null,"Section 2A – Site Information (please complete one tab per site)"]
[null,null,null,null,"Section 2B – Home Child Care Information (if applicable)"]
[null,null,null,null,"Section 3 – Staffing Information"]
[null,null,null,null,"Section 4 – Additional documents"]
[null,null,null,null,"Section 5 – Terms of application"]
[null,null,null,"2. Attach additional required documents as listed in Section 4."]
[null,null,null,"3. Review and check off each condition in the \"Terms of Application\" and complete the certification section (Section 5)."]
[null,null,null,"4. Submit completed workbook and required documents to the email address provided above."]
[]
[null,null,"*","Section 2A – Please complete 1 tab per site.  If your agency oversees more than 1 site, we will be happy to provide you with "]
[null,null,null,"an updated workbook.  Please contact us at ",null,null,null,null,"csfundingrequest@dnssab.ca"]
[null,null,"**","Section 2B – Please leave this tab blank if your agency DOES NOT offer home child care services."]
[]
[null,null,"Please Note:"]
[null,null,null,"Starting in January 2023, licensees who wish to enroll into the CWELCC System will need to contact DNSSAB to ensure that the licensed"]
[null,null,null,"child care program aligns with the local service system plan."]
[]
[null,null,null,"Licensees that obtain their licence after March 27, 2022, will be required to set their base fees at or below a regional "]
[null,null,null,"maximum, as set out by age group pursuant to O.Reg.137/15 of the CCEYA, unless a specific fee amount was communicated to "]
[null,null,null,"parents before the requirement under the regulation became effective."]
[]
[null,null,null,"These regional maximum base fees would apply until one of the two conditions is met: 1) the licensee provides notification to the "]
[null,null,null,"DNSSAB that the licensee is not participating in CWELCC, or 2) the licensee receives notice from the DNSSAB of the results of its"]
[null,null,null,"application to enrol in CWELCC."]

{"sheet":"Overview","index":1,"n_rows":73,"n_cols":5,"rows_kept":73,"cut":false,"hidden":false,"merged":[[2,2,2,4],[0,2,0,4],[23,2,23,4],[30,2,30,4]]}
[null,null,"CANADA-WIDE EARLY LEARNING AND CHILD CARE (CWELCC) SYSTEM - OVERVIEW"]
[]
[null,null,"Funding under the Canada-Wide Early Learning and Child Care (CWELCC) System will be used to "]
[null,null,"build and leverage the success of Ontario’s existing early learning and child care system by "]
[null,null,"increasing quality, access, affordability, flexibility and inclusivity in early learning and child care. "]
[]
[null,null,"This will be accomplished by:"]
[null,null,null,"-","Reducing base fees for eligible children by 25% (to a minimum of $12 per day), retroactive to "]
[null,null,null,null,"April 1, 2022, providing a 50% reduction in average base fees for eligible children by the end "]
[null,null,null,null,"of December 2022, and reaching an average of $10 a day child care fees for eligible children "]
[null,null,null,null,"by September 2025 for Service Providers enrolled in the CWELCC System (Note: The average "]
[null,null,null,null,"of $10 a day is calculated including fee subsidies paid to families. As a result, the rates charged "]
[null,null,null,null,"by operators to families will be approximately $12 a day by September 2025 to achieve a $10 "]
[null,null,null,null,"a day average);"]
[null,null,null,"-","Creating 86,000 new licensed child care spaces, including more than 15,000 licensed child"]
[null,null,null,null,"care spaces created since 2019, with capital start-up grants targeting growth in communities "]
[null,null,null,null,"with populations who need them most;"]
[null,null,null,"-","Ensuring space expansion plans and programming are informed by, and support the "]
[null,null,null,null,"needs of, vulnerable and diverse populations in communities; and"]
[null,null,null,"-","Strengthening the early childhood workforce through enhanced compensation, training"]
[null,null,null,null,"and professional learning opportunities."]
[]
[null,null,"ELIGIBILITY"]
[null,null,"To be eligible for CWELCC funding, Agencies must apply to the District of Nipissing Social "]
[null,null,"Services Administration Board (DNSSAB) to enroll in the CWELCC System and to enter into a purchase "]
[null,null,"of service agreement.  In order to receive the CWELCC funding to reduce base fees for eligible children, "]
[null,null,"the Agency must agree to operate under the criteria outlined in the terms and conditions "]
[null,null,"of the service agreement, legislation, Ministry direction and DNSSAB’s policies and guidelines."]
[]
[null,null,"CONFIRMATION OF PARTICIPATION"]
[null,null,"Licensed child care agencies that wish to enroll in the CWELCC System must confirm their intent "]
[null,null,"to participate in Section 1, provide any additional documentation required as per Section 4 and "]
[null,null,"agree to the conditions outlined in Section 5 (Terms of Application) to the DNSSAB. "]
[]
[]
[null,null,"DEFINITIONS"]
[null,null,"For the purpose of this form, the following terms will have the following meanings:"]
[null,null,null,null,"\"Agency\" means the Licensee's or Service Provider's business;"]
[null,null,null,null,"“Base Fee” means any fee or part of a fee that is charged in respect of a child for child care, "]
[null,null,null,null,"including anything a Service Provider is required to provide under the CCEYA, or anything a"]
[null,null,null,null,"Service Provider requires the parent to purchase from the Service Provider, but does not "]
[null,null,null,null,"include a non-base fee;"]
[null,null,null,null,"“CCEYA” means Child Care and Early Years Act, 2014 and its regulations; "]
[null,null,null,null,"“CWELCC System” means the Canada-Wide Early Learning and Child Care System for early years "]
[null,null,null,null,"and child care funding provided for in an agreement entered into by the Province of Ontario "]
[null,null,null,null,"and the Government of Canada;"]
[null,null,null,null,"“DNSSAB” means the District of Nipissing Social Services Administration Board who is "]
[null,null,null,null,"the Service System Manager (SSM) in the District of Nipissing, as designated under the CCEYA."]
[null,null,null,null,"“Eligible Child” means any child until the last day of the month in which they turn 6 years old "]
[null,null,null,null,"(irrespective of the type of licensed child care program in which they are enrolled); and up until June 30"]
[null,null,null,null,"in a calendar year, any child who (a) turns six years old between January 1 and June 30 in that calendar"]
[null,null,null,null,"year, and (b) is enrolled in a licensed infant, toddler, preschool or kindergarten group, a licensed family "]
[null,null,null,null,"age group, or home child care (all eligible children receiving home child care at a premises overseen by "]
[null,null,null,null,"an agency are eligible for the fee reduction - both agency placed and privately placed)."]
[null,null,null,null,"\"Licensed Capacity\" means"]
[null,null,null,null,"●   For a child care centre, the maximum number of children, including the number in each age category, "]
[null,null,null,null,"permitted to be receiving child care in the child care centre child care at one time as set out in the licence "]
[null,null,null,null,"of the child care centre."]
[null,null,null,null,"●  For home child care, the maximum number of children permitted to be receiving child care in the home "]
[null,null,null,null,"at one time as set out in the agreement between the licensed home child care agency and "]
[null,null,null,null,"home child care provider."]
[null,null,null,null,"“Licensee” or “Service Provider” means a home child care agency or child care centre-based "]
[null,null,null,null,"service provider as defined by the CCEYA;"]
[null,null,null,null,"“Non-Base Fee” means any fees charged for optional items or optional services, such as "]
[null,null,null,null,"transportation or field trips, or any fee charged pursuant to an agreement between the parent "]
[null,null,null,null,"and Service Provider in respect to circumstances where the parent fails to meet the terms of the"]
[null,null,null,null,"agreement (i.e. fees for pick up a child late, fees to obtain items the parent agreed to provide for "]
[null,null,null,null,"their child but failed to provide), as defined in the CCEYA."]
[null,null,null,null,"\"Operating Capacity (FTE)\" means the number of full-time equivalent (FTE) children the site or "]
[null,null,null,null,"home child care provider is currently serving as per the Service Provider's staffing complement and budget, "]
[null,null,null,null,"to a maximum ceiling of the licensed capacity."]
[null,null,null,null,"\"Participation Date\" means the date that the Agreement was fully executed by the Service Provider "]
[null,null,null,null,"and DNSSAB, confirming the Agency's enrolment and participation in the CWELCC System."]

{"sheet":"Section 1","index":2,"n_rows":12,"n_cols":15,"rows_kept":12,"cut":false,"hidden":false,"merged":[[6,2,7,2],[6,5,7,5],[31,4,31,6],[32,4,32,6],[33,4,33,6],[29,2,29,6],[12,3,12,6],[13,3,13,6],[28,2,28,6]]}
[null,null,"SECTION 1 : AGENCY INFORMATION",null,null,null,null,null,null,null,"Item","Result",null,"Row","True/False"]
[null,null,null,null,null,null,null,null,null,null,"Agency Name",{"$f":"agency_name","v":0},null,17,false]
[null,null,"Agency Name:",null,null,"Address : ",null,null,null,null,"Address",{"$f":"G3","v":0},null,19,false]
[null,null,"Contact Name :",null,null,"Position/Title :",null,null,null,null,"Contact Name",{"$f":"agency_contact","v":0},null,20,false]
[null,null,"Email:",null,null,"Telephone Number :",null,null,null,null,"Position/Title",{"$f":"agency_contact_title","v":0},null,22,false]
[null,null,"Auspice:",null,null,"Business Type:",null,null,null,null,"Telephone Number",{"$f":"agency_tel_num","v":0},null,23,false]
[null,null,"Service Type:","Child Care Centre",null,"Type of Program :","Indigenous (off-reserve)",null,null,null,"Email",{"$f":"agency_email","v":0}]
[null,null,null,"Home Child Care Agency",null,null,"Francophone",null,null,null,"Auspice",{"$f":"D6","v":0}]
[null,null,null,null,null,null,null,null,null,null,"Business Type",{"$f":"G6","v":0}]
[null,null,null,null,null,null,null,null,null,null,"Indigenous (off-reserve)",false]
[null,null,null,{"$f":"IF($L$12=1,\"Please complete Sections 2 through 5.\",IF($L$12=2,\"Please complete Opt-out and Certification sections below and submit workbook to csfundingrequest@dnssab.ca\",\"\"))","v":"Please complete Sections 2 through 5."},null,null,null,null,null,null,"Francophone",false]
[null,null,null,null,null,null,null,null,null,null,"Opt-In",1]

{"sheet":"Section 2 - Site 1","index":3,"n_rows":132,"n_cols":26,"rows_kept":132,"cut":false,"hidden":false,"merged":[[10,19,10,20],[20,12,22,20],[43,4,46,8],[10,17,10,18],[42,12,46,20],[8,2,8,9],[3,5,3,9],[2,5,2,9],[2,11,2,21],[4,8,4,9],[5,8,5,9],[6,8,6,9]]}
[2,null,"SECTION 2A : CHILD CARE SITE INFORMATION"]
[]
[null,null,null,"Site Name :",null,null,null,null,null,null,null,"Daily Rates & Eligible Expenses"]
[null,null,null,"Address : ",null,null,null,null,null,null,null,null,null,null,null,null,null,null,null,null,null,null,null,null,"Site Info","Site 2"]
[null,null,null,"License #:",null,null,null,"# of Rooms:",null,null,null,null,"Child care operators that obtain their licence after March 27, 2022, are required to set their base fees at or below a ",null,null,null,null,null,null,null,null,null,null,null,"Site Name",{"$f":"+site_name","v":0}]
[null,null,null,"Licensed Since:",null,null,null,"Evening Care :",null,null,null,null,"regional maximum, as set out by age group pursuant to O.Reg. 137/15 of the CCEYA, unless a specific fee amount was",null,null,null,null,null,null,null,null,null,null,null,"Address",{"$f":"+site_address","v":0}]
[null,null,null,"Hours of Operation:",null,null,null,"Weekend Care:",null,null,null,null,"communicated to parents before the requirement under the regulation became effective.",null,null,null,null,null,null,null,null,null,null,null,"Hours of Operation",{"$f":"+F7","v":0}]
[null,null,null,null,null,null,null,null,null,null,null,null,null,null,null,null,null,null,null,null,null,null,null,null,"Number of Rooms",{"$f":"+I5","v":0}]
[null,null,"Rooms & Program Closures",null,null,null,null,null,null,null,null,null,"Please input current daily rates for each age group in the table below and provide details for rates presented as \"Other\".",null,null,null,null,null,null,null,null,null,null,null,"License Number",{"$f":"+lic_numb","v":0}]
[null,null,null,"Complete this section by entering information for all rooms.",null,null,null,null,null,null,null,null,null,null,null,null,null,null,null,null,null,null,null,null,"Licensed Since",{"$f":"+lic_since_date","v":"00:00:00"}]
[null,null,null,"If a school age room is licensed with mixed age grouping and a child less than 6 years of age is attending",null,null,null,null,null,null,null,null,null,null,null,null,null,null,null,null,null,null,null,null,"Evening Care",{"$f":"+I6","v":0}]
[null,null,null,"the school age room, please include child in # CWELCC eligible children currently enrolled.",null,null,null,null,null,null,null,null,"Current Daily Rates:",null,null,null,null,null,null,null,null,null,null,null,"Weekend Care",{"$f":"+I7","v":0}]
[null,null,null,"#","Room Name","Age Group","Licensed Capacity","Current Operating Capacity \n(FTEs)","# of CWELCC eligible children currently enrolled",null,null,null,"Age Group","Full Day","Part Day","Evening","Weekend","Before School","After \nSchool","Before & After School","Other",null,null,null,"Daily Rates at March 27",0]
[null,null,null,1,null,null,null,null,null,null,null,null,"Infant",null,null,null,null,null,null,null,null,null,null,null,"Comments",{"$f":"Daily_Rates_Comments","v":0}]
[null,null,null,{"$f":"D14+1","v":2},null,null,null,null,null,null,null,null,"Toddler",null,null,null,null,null,null,null,null,null,null,null,"Total Licensed Capacity",{"$f":"Lic_cap","v":"-"}]
[null,null,null,3,null,null,null,null,null,null,null,null,"Preschool",null,null,null,null,null,null,null,null,null,null,null,"Total Operating Capacity",{"$f":"Op_cap","v":"-"}]
[null,null,null,4,null,null,null,null,null,null,null,null,"JK/SK",null,null,null,null,null,null,null,null,null,null,null,"Daily Rates cover eligible expenses",0]
[null,null,null,5,null,null,null,null,null,null,null,null,"School Age",null,null,null,null,null,null,null,null,null,null,null,"Other expenses",{"$f":"M43","v":0}]
[null,null,null,6,null,null,null,null,null,null,null,null,null,null,null,null,null,null,null,null,null,null,null,null,"Close for more than 2 consecutive wks",0]
[null,null,null,7,null,null,null,null,null,null,null,null,"Comments:",null,null,null,null,null,null,null,null,null,null,null,"Closed for more than 4 weeks total",0]
[null,null,null,8,null,null,null,null,null,null,null,null,null,null,null,null,null,null,null,null,null,null,null,null,"Number of Days closed - details",{"$f":"Numb_Days_Closed_Details","v":0}]
[null,null,null,9]
[null,null,null,10]
[null,null,null,11]
[null,null,null,12]
[null,null,null,13]
[null,null,null,14]
[null,null,null,15]
[]
[null,null,null,null,null,"* Total Licensed Capacity",null,{"$f":"IF(SUM(G14:G28)<=0,\"-\",SUM(G14:G28))","v":"-"}]
[null,null,null,null,null,"* Total Operating Capacity",null,{"$f":"IF(SUM(H14:H28)<=0,\"-\",SUM(H14:H28))","v":"-"},null,null,null,null,"* CWELCC funding is meant to cover a portion of the funding required to operate eligible spaces for "]
[null,null,null,null,null,null,null,null,null,null,null,null,"children from infancy up to six years of age.  CWELCC funding  can be used to cover eligible expenses "]
[null,null,null,null,null,null,null,null,null,null,null,null,"(those that are required to meet the requirements under the CCEYA)."]
[null,null,null,"* Does this program close for more than 2 consecutive weeks in a calendar year?",null,null,null,null,null,null,null,null,"Do your current daily rates cover those eligible expenses for the CWELCC eligible spaces?"]
[null,null,null,null,"Yes",null,null,null,null,null,null,null,"Yes"]
[null,null,null,null,"No",null,null,null,null,null,null,null,"No"]
[]
[null,null,null,"* Does this program close for more than 4 weeks in total in a calendar year?",null,null,null,null,null,null,null,null,"* Are any other fees, over and above the current daily rates entered in table above, currently"]
[null,null,null,null,"Yes",null,null,null,null,null,null,null,"being charged to families. (i.e., registration, membership, field trips, lunch, sunscreen, etc ...)"]
[null,null,null,null,"No",null,null,null,null,null,null,null,"Yes, please provide details below"]
[null,null,null,null,null,null,null,null,null,null,null,null,"No"]
[null,null,null,"* Please report the anticipated closures in a calendar year. "]
[null,null,null,null," (i.e., summer months, last 2 weeks of August, statutory holidays)"]
[]
[]
[]
[]
[]
[]
[]
[]
[]
[]
[]
[]
[]
[]
[]
[]
[]
[]
[]
[]
[]
[]
[]
[]
[]
[]
[]
[]
[]
[]
[]
[]
[]
[]
[]
[]
[]
[]
[]
[]
[]
[]
[]
[]
[]
[]
[]
[]
[]
[]
[]
[]
[]
[]
[]
[]
[]
[]
[]
[]
[]
[]
[]
[]
[]
[]
[]
[]
[]
[]
[]
[]
[]
[]
[]
[]
[]
[]
[]
[]
[]
[]
[]
[]
[]
[]
[]
[]
[null,null,null,null,null,null,null,null,null,null,null,null,null,null,null,null,null,null,null,null,null,null,null,null,null,3]

{"sheet":"Section 2 - Home Child Care","index":4,"n_rows":63,"n_cols":25,"rows_kept":63,"cut":false,"hidden":false,"merged":[[2,11,2,12],[3,11,3,12],[4,11,4,12],[2,4,2,6],[5,4,5,6],[4,4,4,6],[2,8,2,9],[17,14,17,20],[16,5,16,6],[16,7,16,20],[14,2,14,13],[8,3,8,7],[63,2,63,10],[62,2,62,10],[17,2,17,4],[17,7,17,13],[3,4,3,6],[11,2,11,13],[13,2,13,13],[12,2,12,13],[15,2,15,13]]}
[null,null,"SECTION 2B : LICENSED HOME CHILD CARE INFORMATION",null,null,null,null,null,null,null,null,null,null,null,null,null,null,null,null,null,null,null,null,"Column1","Column2"]
[null,null,null,null,null,null,null,null,null,null,null,null,null,null,null,null,null,null,null,null,null,null,null,"HCC Agency Name",{"$f":"E3","v":0}]
[null,null,null,"Agency Name :",null,null,null,null,"Agency License #:",null,null,null,null,null,null,null,null,null,null,null,null,null,null,"HCC Agency Address ",{"$f":"E6","v":0}]
[null,null,null,"Contact Name:",null,null,null,null,"Licensed Capacity: (# homes per MEDU License)",null,null,null,null,null,null,null,null,null,null,null,null,null,null,"HCC Contact Name",{"$f":"+E4","v":0}]
[null,null,null,"Email:",null,null,null,null,"Operating Capacity: (Current # active homes)",null,null,null,null,null,null,null,null,null,null,null,null,null,null,"HCC Agency Email",{"$f":"+E5","v":0}]
[null,null,null,"Agency Address : ",null,null,null,null,null,null,null,null,null,null,null,null,null,null,null,null,null,null,null,"HCC Agency Lic #",{"$f":"hcc_agency_lic_num","v":0}]
[null,null,null,null,null,null,null,null,null,null,null,null,null,null,null,null,null,null,null,null,null,null,null,"HCC Agency Lic. Cap",{"$f":"hcc_lic_cap_homes","v":0}]
[null,null,"*","Do your providers offer Private Placements?",null,null,null,null,null,null,null,null,null,null,null,null,null,null,null,null,null,null,null,"HCC Agency Op. Cap",{"$f":"hcc_op_cap_homes","v":0}]
[null,null,null,null,null,null,null,null,null,null,null,null,null,null,null,null,null,null,null,null,null,null,null,"Private Placement",{"$f":"+F8","v":0}]
[null,null,"*","Do Private Placement rates differ from Agency rates?",null,null,null,null,null,null,null,null,null,null,null,null,null,null,null,null,null,null,null,"Priv Placement vs. Agency Rates",{"$f":"+F10","v":0}]
[null,null,null,null,null,null,null,null,null,null,null,null,null,null,null,null,null,null,null,null,null,null,null,"HCC Rates Comments",{"$f":"+C64","v":0}]
[null,null,{"$f":"IF(Priv_vs_Ag_Rates_Different=\"\",\"\",\"Please provide Attendance and Daily Rate information for ALL providers overseen by your agency (even if physically located outside Nipissing district).\")","v":""}]
[null,null,{"$f":"IF(Priv_vs_Ag_Rates_Different=\"\",\"\",\"If daily rates vary by age group, please complete one line for each age group repeating provider name on each line.\")","v":""}]
[null,null,{"$f":"IF(Priv_vs_Ag_Rates_Different=\"\",\"\",\"Please use 'Add a row' button located below table to add more rows as needed.\")","v":""}]
[null,null,{"$f":"IF(Priv_Place_YorN=\"\",\"\",IF(Priv_Place_YorN=\"Yes\",\"\",\"Please provide information for ALL providers overseen by your agency (even if physically outside the Nipissing district) in table below.\"))","v":""}]
[null,null,{"$f":"IF(Priv_Place_YorN=\"\",\"\",IF(Priv_Place_YorN=\"Yes\",\"\",\"If daily rates vary by age group, please complete one line for each age group repeating provider name on each line.\"))","v":""}]
[null,null,null,null,null,"ATTENDANCE",null,"DAILY RATES"]
[null,null,"PROVIDER INFORMATION",null,null,"Agency","Private",{"$f":"IF(Priv_vs_Ag_Rates_Different=\"No\",\"Agency and Private Placement\", \"Agency\")","v":"Agency"},null,null,null,null,null,null,"Private"]
[null,null,"#","Provider Name","Rates Apply To","Avg # Children Attending","Avg. # Children Attending","Full Day","Part Day","Evening/\nExtended Hrs","Before\nSchool","After \nSchool","Before & After \nSchool","Other","Full\nDay","Part Day","Evening/\nExtended Hrs","Before\nSchool","After \nSchool","Before & After \nSchool","Other"]
[null,null,"#","Provider Name","Age Group","Ag_#ChildrenAttending","Priv_#ChildrenAttending","Ag_FD_rate","Ag_PD_rate","Ag_EveExt_rate","Ag_BefSch_rate","Ag_AftSch_rate","Ag_BefAftSch_rate","Ag_Other","Priv_FD_rate","Priv_PD_rate","Priv_EveExt_rate","Priv_BefSch_rate","Priv_AftSch_rate","Priv_BefAftSch_rate","Priv_Other"]
[null,null,1]
[null,null,2]
[null,null,3]
[null,null,4]
[null,null,5]
[null,null,6]
[null,null,7]
[null,null,8]
[null,null,9]
[null,null,10]
[null,null,11]
[null,null,12]
[null,null,13]
[null,null,14]
[null,null,15]
[null,null,16]
[null,null,17]
[null,null,18]
[null,null,19]
[null,null,20]
[null,null,21,{"$f":"IF(INDEX(Input_HCC_Providers[Provider Name],MATCH(Hm_Prov_Info[[#This Row],['#]],Input_HCC_Providers['#],0))=\"\",\"\",(INDEX(Input_HCC_Providers[Provider Name],MATCH(Hm_Prov_Info[[#This Row],['#]],Input_HCC_Providers['#],0))))","v":""}]
[null,null,22,{"$f":"IF(INDEX(Input_HCC_Providers[Provider Name],MATCH(Hm_Prov_Info[[#This Row],['#]],Input_HCC_Providers['#],0))=\"\",\"\",(INDEX(Input_HCC_Providers[Provider Name],MATCH(Hm_Prov_Info[[#This Row],['#]],Input_HCC_Providers['#],0))))","v":""}]
[null,null,23,{"$f":"IF(INDEX(Input_HCC_Providers[Provider Name],MATCH(Hm_Prov_Info[[#This Row],['#]],Input_HCC_Providers['#],0))=\"\",\"\",(INDEX(Input_HCC_Providers[Provider Name],MATCH(Hm_Prov_Info[[#This Row],['#]],Input_HCC_Providers['#],0))))","v":""}]
[null,null,24,{"$f":"IF(INDEX(Input_HCC_Providers[Provider Name],MATCH(Hm_Prov_Info[[#This Row],['#]],Input_HCC_Providers['#],0))=\"\",\"\",(INDEX(Input_HCC_Providers[Provider Name],MATCH(Hm_Prov_Info[[#This Row],['#]],Input_HCC_Providers['#],0))))","v":""}]
[null,null,25,{"$f":"IF(INDEX(Input_HCC_Providers[Provider Name],MATCH(Hm_Prov_Info[[#This Row],['#]],Input_HCC_Providers['#],0))=\"\",\"\",(INDEX(Input_HCC_Providers[Provider Name],MATCH(Hm_Prov_Info[[#This Row],['#]],Input_HCC_Providers['#],0))))","v":""}]
[null,null,26,{"$f":"IF(INDEX(Input_HCC_Providers[Provider Name],MATCH(Hm_Prov_Info[[#This Row],['#]],Input_HCC_Providers['#],0))=\"\",\"\",(INDEX(Input_HCC_Providers[Provider Name],MATCH(Hm_Prov_Info[[#This Row],['#]],Input_HCC_Providers['#],0))))","v":""}]
[null,null,27,{"$f":"IF(INDEX(Input_HCC_Providers[Provider Name],MATCH(Hm_Prov_Info[[#This Row],['#]],Input_HCC_Providers['#],0))=\"\",\"\",(INDEX(Input_HCC_Providers[Provider Name],MATCH(Hm_Prov_Info[[#This Row],['#]],Input_HCC_Providers['#],0))))","v":""}]
[null,null,28,{"$f":"IF(INDEX(Input_HCC_Providers[Provider Name],MATCH(Hm_Prov_Info[[#This Row],['#]],Input_HCC_Providers['#],0))=\"\",\"\",(INDEX(Input_HCC_Providers[Provider Name],MATCH(Hm_Prov_Info[[#This Row],['#]],Input_HCC_Providers['#],0))))","v":""}]
[null,null,29,{"$f":"IF(INDEX(Input_HCC_Providers[Provider Name],MATCH(Hm_Prov_Info[[#This Row],['#]],Input_HCC_Providers['#],0))=\"\",\"\",(INDEX(Input_HCC_Providers[Provider Name],MATCH(Hm_Prov_Info[[#This Row],['#]],Input_HCC_Providers['#],0))))","v":""}]
[null,null,30,{"$f":"IF(INDEX(Input_HCC_Providers[Provider Name],MATCH(Hm_Prov_Info[[#This Row],['#]],Input_HCC_Providers['#],0))=\"\",\"\",(INDEX(Input_HCC_Providers[Provider Name],MATCH(Hm_Prov_Info[[#This Row],['#]],Input_HCC_Providers['#],0))))","v":""}]
[null,null,31,{"$f":"IF(INDEX(Input_HCC_Providers[Provider Name],MATCH(Hm_Prov_Info[[#This Row],['#]],Input_HCC_Providers['#],0))=\"\",\"\",(INDEX(Input_HCC_Providers[Provider Name],MATCH(Hm_Prov_Info[[#This Row],['#]],Input_HCC_Providers['#],0))))","v":""}]
[null,null,32,{"$f":"IF(INDEX(Input_HCC_Providers[Provider Name],MATCH(Hm_Prov_Info[[#This Row],['#]],Input_HCC_Providers['#],0))=\"\",\"\",(INDEX(Input_HCC_Providers[Provider Name],MATCH(Hm_Prov_Info[[#This Row],['#]],Input_HCC_Providers['#],0))))","v":""}]
[null,null,33,{"$f":"IF(INDEX(Input_HCC_Providers[Provider Name],MATCH(Hm_Prov_Info[[#This Row],['#]],Input_HCC_Providers['#],0))=\"\",\"\",(INDEX(Input_HCC_Providers[Provider Name],MATCH(Hm_Prov_Info[[#This Row],['#]],Input_HCC_Providers['#],0))))","v":""}]
[null,null,34,{"$f":"IF(INDEX(Input_HCC_Providers[Provider Name],MATCH(Hm_Prov_Info[[#This Row],['#]],Input_HCC_Providers['#],0))=\"\",\"\",(INDEX(Input_HCC_Providers[Provider Name],MATCH(Hm_Prov_Info[[#This Row],['#]],Input_HCC_Providers['#],0))))","v":""}]
[null,null,35,{"$f":"IF(INDEX(Input_HCC_Providers[Provider Name],MATCH(Hm_Prov_Info[[#This Row],['#]],Input_HCC_Providers['#],0))=\"\",\"\",(INDEX(Input_HCC_Providers[Provider Name],MATCH(Hm_Prov_Info[[#This Row],['#]],Input_HCC_Providers['#],0))))","v":""}]
[null,null,36,{"$f":"IF(INDEX(Input_HCC_Providers[Provider Name],MATCH(Hm_Prov_Info[[#This Row],['#]],Input_HCC_Providers['#],0))=\"\",\"\",(INDEX(Input_HCC_Providers[Provider Name],MATCH(Hm_Prov_Info[[#This Row],['#]],Input_HCC_Providers['#],0))))","v":""}]
[null,null,37,{"$f":"IF(INDEX(Input_HCC_Providers[Provider Name],MATCH(Hm_Prov_Info[[#This Row],['#]],Input_HCC_Providers['#],0))=\"\",\"\",(INDEX(Input_HCC_Providers[Provider Name],MATCH(Hm_Prov_Info[[#This Row],['#]],Input_HCC_Providers['#],0))))","v":""}]
[null,null,38,{"$f":"IF(INDEX(Input_HCC_Providers[Provider Name],MATCH(Hm_Prov_Info[[#This Row],['#]],Input_HCC_Providers['#],0))=\"\",\"\",(INDEX(Input_HCC_Providers[Provider Name],MATCH(Hm_Prov_Info[[#This Row],['#]],Input_HCC_Providers['#],0))))","v":""}]
[null,null,39,{"$f":"IF(INDEX(Input_HCC_Providers[Provider Name],MATCH(Hm_Prov_Info[[#This Row],['#]],Input_HCC_Providers['#],0))=\"\",\"\",(INDEX(Input_HCC_Providers[Provider Name],MATCH(Hm_Prov_Info[[#This Row],['#]],Input_HCC_Providers['#],0))))","v":""}]
[null,null,40,{"$f":"IF(INDEX(Input_HCC_Providers[Provider Name],MATCH(Hm_Prov_Info[[#This Row],['#]],Input_HCC_Providers['#],0))=\"\",\"\",(INDEX(Input_HCC_Providers[Provider Name],MATCH(Hm_Prov_Info[[#This Row],['#]],Input_HCC_Providers['#],0))))","v":""}]
[]
[]
[null,null,"Comments:"]

{"sheet":"Section 3","index":5,"n_rows":51,"n_cols":9,"rows_kept":51,"cut":false,"hidden":false,"merged":[[37,2,37,12],[2,2,2,12],[16,4,16,8]]}
[null,null,null," SECTION 3 : WORKFORCE COMPENSATION ELIGIBILITY CRITERIA"]
[]
[null,null,"WAGE FLOOR (WF) AND ANNUAL INCREASE (AI)"]
[]
[null,null,null,"WAGE FLOOR"]
[null,null,null,"Service Providers enrolling in the CWELCC System in 2023, are required to bring the wage of all eligible staff to the wage floor identified in the Hourly Wage Floor Table, plus benefits."]
[null,null,null,"All eligible staff hired during the identified years must earn at least the wage floor identified for that year, plus benefits.  Annual wage increases, as described below,"]
[null,null,null,"will come into effect in 2024."]
[]
[null,null,null,"To be eligible to have their wage raised to the wage floor, eligible RECE staff must be receiving wage enhancement funding (WEG), and their hourly wage including "]
[null,null,null,"wage enhancement funding must be below the wage floor.  Benefits should not be included when determining the hourly wage (i.e., benefits are in addition to the "]
[null,null,null,"hourly wages)."]
[]
[null,null,null,"For example, if an eligible RECE program staff currently has a wage of $18 ($16 wage + $2 wage enhancement), the agency would be entitled to receive $1 per hour for"]
[null,null,null,"the hours worked from agency's Participation Date to December 2023, to bring the eligible staff to the floor of $19 per hour."]
[]
[null,null,null,null,"Hourly Wage Floor, 2023 to 2026"]
[null,null,null,null,"Position",2023,2024,2025,2026]
[null,null,null,null,"RECE Program Staff",19,20,21,22]
[null,null,null,null,"RECE Child Care Supervisors",21,22,23,24]
[null,null,null,null,"RECE Home Child Care Visitors",21,22,23,24]
[]
[null,null,null,"ANNUAL INCREASE "]
[null,null,null,"Service Providers are required to increase the hourly wage of eligible staff by $1 per hour plus benefits, on January 1st of each year from 2024 to 2026,"]
[null,null,null,"inclusive, up to the $25 per hour wage cap.  To be eligible for the $1 per hour annual increase, the staff's wage must be equal or greater than the wage floor "]
[null,null,null,"and less than $25 per hour.  Staff earning between $24.00 to $24.99 per hour are to have their wages increased to $25 per hour."]
[]
[null,null,null,"Ineligible Positions"]
[null,null,null,"The wage floor and annual increase will not apply to non-program staff such as : Cook, custodial or other non-program staff positions, SNR-funded resource "]
[null,null,null,"teachers/consultants and supplemental staff unless the staff is an RECE and the position spends a minimum of 25% of their time supporting ratio requirements, "]
[null,null,null,"Please note: No staff hired through a third party is eligible (i.e., temp agency)."]
[]
[null,null,null,"Director approved staff"]
[null,null,null,"Qualified staff, child care supervisors, or home child care visitors who are not Registered Early Childhood Educators, but are otherwise approved by a director "]
[null,null,null,"under the child Care and Early Years Act, 2014 are not eligible for the wage floor or annual wage increase."]
[]
[]
[null,null,"NON-RECE MINIMUM WAGE OFFSET (MWO)"]
[]
[null,null,null,"Employers were required to comply with minimum wage legislation and bring staff wages to $15.50/hour as of October 1, 2022."]
[null,null,null,"A CWELCC system eligible licensed child care agency employing staff earning less than $15.50 per hour (not including wage enhancement) on September 30, 2022 "]
[null,null,null,"may be eligible for workforce compensation funding to offset minimum wage increase to bring wages to $15.50/hour for staff  in a position categorized as :"]
[]
[null,null,null,"- Non-RECE Program Staff"]
[null,null,null,"- Non-RECE Child Care Supervisor"]
[null,null,null,"- Non-RECE Home Child Care Visitor"]
[]
[null,null,null,"The minimum wage offset (MWO) does not apply to staff hired after September 30, 2022.  Non-program staff such as : Cook, custodial or other non-program "]
[null,null,null,"staff positions, SNR-funded resource teachers/consultants and supplemental staff unless the non-RECE staff spends a minimum of 25% of their time supporting ratio "]
[null,null,null,"requirements as outlined in the CCEYA, in which case the offset can be applied to the time spent covering ratio.  "]
[null,null,null,"Please note: No staff hired through a third party is eligible (i.e., temp agency)."]

{"sheet":"Section 3 - Staffing Info","index":6,"n_rows":144,"n_cols":12,"rows_kept":144,"cut":false,"hidden":false,"merged":[[141,5,141,7],[142,5,142,7],[143,5,143,7],[20,2,20,11],[21,2,21,11]]}
[null,null," SECTION 3 : STAFFING INFORMATION - CHILD CARE CENTRES & HOME VISITORS"]
[]
[null,null,null,"Purpose"]
[null,null,null,"The staffing details provided in this table will be used to calculate your agency's 2023 estimated workforce compensation entitlement and for service system planning purposes."]
[]
[null,null,null,"Instructions"]
[]
[null,null,null,"Please provide staffing details for ALL employees working at your agency, even if they are ineligible for some / all funding streams.  "]
[null,null,null,"For example, a cook or custodial staff that does not support ratios would be entered with Qualification of NON-RECE, Position of Cook, Age Group of ALL AGE GROUPS and % of time in ratio of 0%."]
[null,null,null,"Administrative positions such as Manager, Administrator, Executive Director or Finance/Bookeeper would be entered with Age Group of ADMINISTRATION and corresponding % time in ratio (normally 0%)."]
[null,null,null,"Step 1 :","Review prepopulated information for accuracy and completeness;"]
[null,null,null,"Step 2 :","Add, modify or delete information as required ensuring staffing details are provided for ALL employees;"]
[null,null,null,"Step 3 :","Input Current Base Hourly Wage for ALL staff regardless of hire date."]
[null,null,null,"Step 4 :","Input the estimated total number of hours the employee will work in the position between application date and December 31, 2023."]
[null,null,null,"Step 5 :","Select appropriate age group using the drop-down menu."]
[null,null,null,"Step 6 :","Review information, complete certification section at the bottom of this form to attest that the information provided is accurate."]
[null,null,null,"NOTE: If a staff member spends time between two different positions with different position details, please complete two lines using the same staff ID with the different positional"]
[null,null,null,"details, estimated hours worked and the appropriate % Eligible Time in each position (i.e., Supervisor 60%, Educator in Infant program 40%)."]
[null,null,null,"TIP - Additional rows can be added using the \"Add a row\" button located at the bottom of the table."]
[]
[null,null,"STAFFING DETAILS"]
[null,null,"EMPLOYEE INFORMATION"]
[null,null,"#","Staff ID\n(Employee ID or Name)\nPlease list ALL employees","Date of Hire","Qualification","Position","Site","Current Base Hourly Wage\nExcluding prior year wage enhancement","Estimated # of Hours Worked\n(Application date - Dec 31, 2023)","Age Group","% of Time Spent in Program Supporting CCEYA Ratio Requirements"]
[null,null,1]
[null,null,{"$f":"+C24+1","v":2}]
[null,null,{"$f":"+C25+1","v":3}]
[null,null,4]
[null,null,5]
[null,null,6]
[null,null,7]
[null,null,8]
[null,null,9]
[null,null,10]
[null,null,11]
[null,null,12]
[null,null,13]
[null,null,14]
[null,null,15]
[null,null,16]
[null,null,17]
[null,null,18]
[null,null,19]
[null,null,20]
[null,null,21]
[null,null,22]
[null,null,23]
[null,null,24]
[null,null,25]
[null,null,26]
[null,null,27]
[null,null,28]
[null,null,29]
[null,null,30]
[null,null,31]
[null,null,32]
[null,null,33]
[null,null,34]
[null,null,35]
[null,null,36]
[null,null,37]
[null,null,38]
[null,null,39]
[null,null,40]
[null,null,41]
[null,null,42]
[null,null,43]
[null,null,44]
[null,null,45]
[null,null,46]
[null,null,47]
[null,null,48]
[null,null,49]
[null,null,50]
[null,null,51]
[null,null,52]
[null,null,53]
[null,null,54]
[null,null,55]
[null,null,56]
[null,null,57]
[null,null,58]
[null,null,59]
[null,null,60]
[null,null,61]
[null,null,62]
[null,null,63]
[null,null,64]
[null,null,65]
[null,null,66]
[null,null,{"$f":"+C89+1","v":67}]
[null,null,68]
[null,null,69]
[null,null,70]
[null,null,71]
[null,null,72]
[null,null,73]
[null,null,74]
[null,null,75]
[null,null,76]
[null,null,77]
[null,null,78]
[null,null,79]
[null,null,80]
[null,null,81]
[null,null,82]
[null,null,83]
[null,null,84]
[null,null,85]
[null,null,86]
[null,null,87]
[null,null,88]
[null,null,89]
[null,null,90]
[null,null,91]
[null,null,92]
[null,null,93]
[null,null,94]
[null,null,95]
[null,null,96]
[null,null,97]
[null,null,98]
[null,null,99]
[null,null,{"$f":"+C122+1","v":100}]
[null,null,101]
[null,null,102]
[null,null,103]
[null,null,104]
[null,null,105]
[null,null,106]
[null,null,107]
[null,null,108]
[null,null,109]
[null,null,110]
[]
[]
[]
[]
[null,null,"CERTIFICATION"]
[null,null,null,"As a signing authority for this agency, by signing below I certify that the information included in the above table is accurate to the best of my knowledge"]
[null,null,null,"at the time of submitting this form."]
[]
[null,null,null,"Authorized Signing Officer:"]
[null,null,null,"Title :"]
[null,null,null,"Date :"]

{"sheet":"Section 4 and 5","index":7,"n_rows":134,"n_cols":13,"rows_kept":134,"cut":false,"hidden":false,"merged":[[16,4,16,5],[11,4,11,5],[12,4,12,5],[13,4,13,5],[14,4,14,5],[15,4,15,5],[127,2,127,7],[117,4,117,6],[118,4,118,6],[119,4,119,6],[20,3,20,6],[23,3,23,6]]}
[null,null,"SECTION 4 : ATTACHED DOCUMENTS"]
[]
[null,null,"To participate in the CWELCC System, the following documentation must be provided by the licensed child care agency."]
[]
[null,null,null,"•   Letters patent / Articles of Incorporation / Confirmation of Sole Proprietorship"]
[null,null,null,"•   License(s) issued by the director under the CCEYA (Ministry of Education)"]
[null,null,null,"•   Certificate of Insurance (confirms a minimum of $5,000,000 liability insurance)"]
[null,null,"•   2020 Audited Financials","•   Most recent Financial Statements"]
[]
[null,null,"SECTION 5 : TERMS OF APPLICATION"]
[]
[null,null,null,{"$f":"'Section 1'!C3","v":"Agency Name:"}]
[null,null,null,{"$f":"'Section 1'!F3","v":"Address : "}]
[null,null,null,{"$f":"'Section 1'!C4","v":"Contact Name :"}]
[null,null,null,{"$f":"'Section 1'!F4","v":"Position/Title :"}]
[null,null,null,{"$f":"'Section 1'!C5","v":"Email:"}]
[null,null,null,{"$f":"'Section 1'!F5","v":"Telephone Number :"}]
[]
[null,null,"Please read and check each box to confirm agreement and understanding for each term and condition listed below."]
[]
[null,null,null,"I would like to confirm that the Agency wishes to participate in the CWELCC System."]
[]
[null,null,null,"I understand that this is an application to determine eligibility to enroll in CWELCC System funding and that approved agencies will be required\n"]
[null,null,null,"to enter into a Purchase of Service Agreement with the DNSSAB."]
[]
[null,null,null,"I understand the requirements associated with CWELCC System funding as outlined in the Ministry of Education and DNSSAB policies and guidelines"]
[null,null,null," and requirements set out under O. Reg 137/15."]
[]
[null,null,null,"I understand that, as the Service Provider, upon approval of this application for enrollment in the CWELCC System, "]
[null,null,null,"the following terms and conditions apply to my enrollment:"]
[]
[null,null,null,"Service Providers that obtain their licence after March 27, 2022, will be required to set their base fees at or below a regional maximum,"]
[null,null,null,"as set out by age group pursuant to O.Reg. 137/15 of the CCEYA, unless a specific fee amount was communicated to parents before the"]
[null,null,null,"requirement under the regulation became effective.  These regional maximum base fees would apply until one of the two conditions is met:"]
[null,null,null,"1) the Service Provider notification to the DNSSAB that the agency is not participating in CWELCC, or;"]
[null,null,null,"2) the Service Provider receives notice from the DNSSAB that its application for CWELCC has been accepted in which case the base fees "]
[null,null,null,"must be reduced."]
[]
[null,null,null,"Service Providers are required to reduce their base fee, provide refunds to parents where applicable, in accordance "]
[null,null,null,"with O. Reg. 137/15, and to increase the wages of Registered Early Childhood Educators to support a mandated "]
[null,null,null,"wage floor and an annual wage increase as well as any other requirements set by the DNSSAB."]
[]
[null,null,null,"Service Providers must maintain the current level of licensed child care spaces from infancy up to six years of age for which "]
[null,null,null,"they will be receiving funding to reduce base fees for eligible children. (e.g., a licensed infant space must remain an "]
[null,null,null,"infant space).  Any revisions or use of alternate capacity must be reported to the DNSSAB, and the DNSSAB may determine "]
[null,null,null,"whether this may require recovering funding from Service Providers."]
[]
[null,null,null,"CWELCC funding allocations to Service Providers will be determined within DNSSAB policies and guidelines and will depend"]
[null,null,null,"on DNSSAB's Children's Services Budget."]
[]
[null,null,null,"Service Providers will need to demonstrate financial viability to DNSSAB. In exceptional cases where Service"]
[null,null,null,"Providers are not able to demonstrate financial viability, or if the DNSSAB has strong concerns that the CWELCC funding "]
[null,null,null,"will be used for improper purposes, the DNSSAB may deny Service Providers’ enrollment in the CWELCC. "]
[]
[null,null,null,"Service Providers that obtain their licence after March 27, 2022, will be required to set their base fees at or below a regional maximum"]
[null,null,null,"as set out by age group pursuant to O.Reg.137/15 of the CCEYA, unless a specific fee amount was communicated to parents before"]
[null,null,null,"the requirement under the regulation became effective."]
[]
[null,null,null,"Service Providers must provide sufficient and detailed financial information for review in accordance with the "]
[null,null,null,"funding, accountability and reconciliation process as determined by DNSSAB's policies, guidelines and reporting requirements."]
[]
[null,null,null,"Service Providers must submit audited financial statements and/other financial information as determined by "]
[null,null,null,"DNSSAB to verify that the funding provided was used for the purpose(s) intended.  Where a Service Provider fails"]
[null,null,null,"to meet this requirement, funds may be recovered, or Service Providers may be ineligible to receive future funding."]
[]
[null,null,null,"Any adjustments and recoveries of funding will be determined at the discretion of DNSSAB’s reconciliation process."]
[]
[null,null,null,"Service Providers will be permitted to accumulated financial reserves or retained earning to support with working capital requirements."]
[]
[null,null,null,"Service Providers will be required to apply for the Wage Enhancement Grant to be eligible to receive CWELCC funding to "]
[null,null,null,"implement the wage floor and the annual wage increase for Registered Early Childhood Educators employed by Service "]
[null,null,null,"Providers.   See the DNSSAB’s ","wage-enhancement-guidelines","for more information."]
[]
[null,null,null,"Service Providers will be required to bring the wage of all eligible RECE staff up to the wage floor plus benefits as identified"]
[null,null,null,"in the ministry's Guideline Addendum."]
[]
[null,null,null,"Service Providers will be required to increase the hourly wage plus benefits of all eligible RECE staff annually as described"]
[null,null,null,"in the ministry's Guideline Addendum."]
[]
[null,null,null,"Services Providers acknowledge that eligible Agencies will receive workforce compensation funding to offset wage"]
[null,null,null,"increases for non-RECE staff associated with the increased minimum wage that came into effect October 1, 2022."]
[]
[null,null,null,"Service Providers acknowledge that upon receiving confirmation of participation in the CWELCC System from the"]
[null,null,null,"DNSSAB, and as new staff are hired, Agencies are required to share, in writing, information about the wage floor and annual "]
[null,null,null,"wage increase with eligible staff. "]
[]
[null,null,null,"Service Providers receiving workforce compensation and wage enhancement funding must ensure that payments are made to eligible "]
[null,null,null,"staff in accordance to Agency's pay schedule.  Workforce compensation and wage enhancement may not be paid at the end of the year"]
[null,null,null,"as a lump sum payment."]
[]
[null,null,null,"Service Providers acknowledge that during the term of the CWELCC funding agreement, the licensed child care program "]
[null,null,null,"may not exceed two consecutive weeks of closure, and not more than four weeks of closure in a calendar year while still "]
[null,null,null,"receiving full funding from the CWELCC System. It is also understood that base fees cannot be charged for any closure above "]
[null,null,null,"and beyond these timelines.  Service Providers understand that CWELCC funding will be adjusted if Service Providers' closure "]
[null,null,null,"period exceed the established closure periods aforementioned."]
[]
[null,null,null,"Service Providers must provide access to the Agency's financial information and acknowledges that DNSSAB will conduct "]
[null,null,null,"random financial compliance audits each year to ensure accountability and confirm compliance with terms, conditions, "]
[null,null,null,"requirements, policies and guidelines.  "]
[]
[null,null,null,"Service Providers must adhere to all requirements as set out in applicable legislation, regulation and local "]
[null,null,null,"requirements as provided in the DNSSAB’s policies and guidelines."]
[]
[null,null,null,"Service Providers must complete their annual Licensed Child Care Operations Survey, as per O.Reg.137/15 (77)."]
[]
[null,null,null,"I understand that should the Agency's application be approved, a new service agreement will not be provided for signature",null,null,null,null,null,null,null,"Row","True/False"]
[null,null,null,"until all financial, operating and licensing requirements are met, and the Agency complies with all legislative requirements",null,null,null,null,null,null,null,22,false]
[null,null,null,"and DNSSAB policies and guidelines.",null,null,null,null,null,null,null,24,false]
[null,null,null,null,null,null,null,null,null,null,null,27,false]
[null,null,null,null,null,null,null,null,null,null,null,30,false]
[null,null,"CERTIFICATION",null,null,null,null,null,null,null,null,33,false]
[null,null,null,"As a signing authority for this agency, by signing below I attest that I understand the implications of ",null,null,null,null,null,null,null,39,false]
[null,null,null,"opting in and confirm that my agency wants to participate in the CWELCC System.  I further attest that ",null,null,null,null,null,null,null,43,false]
[null,null,null,"the information included in this application is accurate at the time of submission and that any funds ",null,null,null,null,null,null,null,48,false]
[null,null,null,"provided through the CWELCC program will be used only as intended and directed by DNSSAB and the ",null,null,null,null,null,null,null,51,false]
[null,null,null,"Ministry of Education.  I have authority to bind the agency.",null,null,null,null,null,null,null,55,false]
[null,null,null,null,null,null,null,null,null,null,null,58,false]
[null,null,null,"Authorized Signing Officer:",null,null,null,null,null,null,null,64,false]
[null,null,null,"Title :",null,null,null,null,null,null,null,67,false]
[null,null,null,"Date :",null,null,null,null,null,null,null,71,false]
[null,null,null,null,null,null,null,null,null,null,null,74,false]
[null,null,null,null,null,null,null,null,null,null,null,76,false]
[null,null,"NOTICE OF THE COLLECTION OF PERSONAL INFORMATION",null,null,null,null,null,null,null,null,82,false]
[null,null,"The District of Nipissing Social Services Administration Board collects personal information under the legal authority of the ",null,null,null,null,null,null,null,null,88,false]
[null,null,"Child Care and Early Years Act, 2014, S.O. 2014, Chapter 11, Schedule 1, s 71 (1).  The information is used to determine eligibility for ",null,null,null,null,null,null,null,null,92,false]
[null,null,"Child Care Services, Subsidy and participation in the Canada-Wide Early Learning and Child Care (CWELCC) System.  ",null,null,null,null,null,null,null,null,95,false]
[null,null,null,null,null,null,null,null,null,null,null,98,false]
[null,null,"QUESTIONS OR INQUIRIES ABOUT THIS COLLECTION, USE OR DISCLOSURE SHOULD BE ADDRESSED TO:",null,null,null,null,null,null,null,null,101,false]
[null,null,"District of Nipissing Social Services Administration Board - Children’s Services Department ",null,null,null,null,null,null,null,null,105,false]
[null,null,"By email:  ",null,"csfundingrequest@dnssab.ca",null,null,null,null,null,null,108,false]
[null,null,null,null,null,null,null,null,null,null,null,114,false]
[null,null,null,null,null,null,null,null,null,null,null,118,false]
[null,null,null,null,null,null,null,null,null,null,null,121,false]
[null,null,null,null,null,null,null,null,null,null,null,123,false]

{"sheet":"INPUTS","index":8,"n_rows":68,"n_cols":12,"rows_kept":68,"cut":false,"hidden":true,"merged":[[6,0,6,1],[1,0,1,1],[22,0,22,1],[26,0,26,1]]}
[]
["AGENCY"]
["Column1","Name","Address","Contact Name","Title","Email","Telephone","Extension","Fax","Column2","Column3","Column4"]
[1]
[]
[]
["Site Names"]
["#","Name","Address","Contact Name","Title","Email","Telephone","Extension","Fax","Status","License","Licensed Since"]
[1]
[2]
[3]
[4]
[5]
[6]
[7]
[8]
[9]
[10]
[11]
[12]
[]
[]
["HCC AGENCY"]
["#","Name","Address","Contact Name","Title","Email","Phone","Extension","Fax","Status","License","Licensed Capacity"]
[1]
[]
["Licensed Home Child Care Providers"]
["#","Provider Name","Contract Start Date","Address","City","Full Address"]
[1,null,null,null,null,{"$f":"D29 &\",\"& E29","v":","}]
[2,null,null,null,null,","]
[{"$f":"+A30+1","v":3},null,null,null,null,","]
[{"$f":"+A31+1","v":4},null,null,null,null,","]
[5,null,null,null,null,","]
[6,null,null,null,null,","]
[7,null,null,null,null,","]
[8,null,null,null,null,","]
[9,null,null,null,null,","]
[10,null,null,null,null,","]
[11,null,null,null,null,","]
[12,null,null,null,null,","]
[13,null,null,null,null,","]
[14,null,null,null,null,","]
[15,null,null,null,null,","]
[16,null,null,null,null,","]
[17,null,null,null,null,","]
[18,null,null,null,null,","]
[19,null,null,null,null,","]
[20,null,null,null,null,","]
[21,null,null,null,null,","]
[22,null,null,null,null,","]
[23,null,null,null,null,","]
[24,null,null,null,null,","]
[25,null,null,null,null,","]
[26,null,null,null,null,","]
[27,null,null,null,null,","]
[28,null,null,null,null,","]
[29,null,null,null,null,","]
[30,null,null,null,null,","]
[31,null,null,null,null,","]
[32,null,null,null,null,","]
[33,null,null,null,null,","]
[34,null,null,null,null,","]
[35,null,null,null,null,","]
[36,null,null,null,null,","]
[37,null,null,null,null,","]
[38,null,null,null,null,","]
[39,null,null,null,null,","]
[40,null,null,null,null,","]

{"sheet":"Data Validation","index":9,"n_rows":22,"n_cols":6,"rows_kept":22,"cut":false,"hidden":true,"merged":[]}
[]
[]
[null,"Age Group Ctr Based",null,"Age Group HCC"]
[null,"Infant",null,"ALL Age Groups"]
[null,"Toddler",null,"Infant"]
[null,"Preschool",null,"Toddler"]
[null,"JK/SK",null,"Preschool"]
[null,"School Age",null,"JK/SK"]
[null,"Family Age Grouping",null,"School Age"]
[]
[]
[null,"Age Group - Wage Floor/MWO",null,"Qualification",null,"Position"]
[null,"INFANT",null,"RECE",null,"EDUCATOR"]
[null,"TODDLER",null,"NON-RECE",null,"HOME VISITOR"]
[null,"PRESCHOOL",null,"DIRECTOR APPROVED",null,"SUPERVISOR"]
[null,"JK/SK",null,"APPRENTICE ECE",null,"MANAGER"]
[null,"SCHOOL AGE",null,null,null,"ADMINISTRATOR"]
[null,"FAMILY GROUP 0-5",null,null,null,"EXECUTIVE DIRECTOR"]
[null,"FAMILY GROUP 6-12",null,null,null,"FINANCE/BOOKKEEPER"]
[null,"ALL AGE GROUPS",null,null,null,"COOK"]
[null,"ADMINISTRATION",null,null,null,"CUSTODIAL"]
[null,null,null,null,null,"OTHER"]